fUST/lending_fUST_20241112
["ID","MTS","AMOUNT","RATE_DAILY","PERIOD"]
[342053824,1731395468760,-379.25307136,0.00026849,2]
[342053825,1731395468769,-500.0,0.00026849,2]
[342053826,1731395468779,-2204.59,0.00026849,2]
[342053827,1731395468788,-174.20626644,0.00026849,2]
[342053828,1731395468797,-657.25,0.00026849,2]
[342053829,1731395468807,-6271.46,0.00026849,2]
[342053830,1731395468815,-573.94,0.00026849,2]
[342053831,1731395468824,-883.62,0.00026849,2]
[342053832,1731395468834,-925.17,0.00026849,2]
[342053833,1731395468843,-500.0,0.00026849,2]
[342053834,1731395468852,-1011.75,0.00026849,2]
[342053835,1731395468862,-19034.84,0.00026849,2]
[342053836,1731395468871,-1831.69,0.00026849,2]
[342053837,1731395468880,-564.26,0.00026849,2]
[342053838,1731395468890,-1321.42,0.00026849,2]
[342053839,1731395468899,-516.24,0.00026849,2]
[342053840,1731395468909,-1588.61,0.00026849,2]
[342053841,1731395468918,-6707.74,0.00026849,2]
[342053842,1731395468928,-4781.29,0.00026849,2]
[342053843,1731395468937,-1089.53,0.00026849,2]
[342053844,1731395468949,-737.22,0.00026849,2]
[342053845,1731395468959,-8365.05,0.00026849,2]
[342053846,1731395468968,-1231.58,0.00026849,2]
[342053847,1731395468978,-578.71,0.00026849,2]
[342053848,1731395468987,-690.09,0.00026849,2]
[342053849,1731395468996,-3140.86,0.00026849,2]
[342053850,1731395469005,-500.0,0.00026849,2]
[342053851,1731395469015,-1329.26,0.00026849,2]
[342053852,1731395469025,-1361.49,0.00026849,2]
[342053853,1731395469034,-754.43,0.00026849,2]
[342053854,1731395469043,-1514.78,0.00026849,2]
[342053855,1731395469053,-633.9,0.00026849,2]
[342053856,1731395469062,-815.11,0.00026849,2]
[342053857,1731395469072,-611.92,0.00026849,2]
[342053858,1731395469081,-12440.19,0.00026849,2]
[342053859,1731395469091,-515.26,0.00026849,2]
[342053860,1731395469101,-782.05,0.00026849,2]
[342053861,1731395469111,-958.04,0.00026849,2]
[342053862,1731395469121,-500.0,0.00026849,2]
[342053863,1731395469131,-517.22,0.00026849,2]
[342053864,1731395469140,-1035.61,0.00026849,2]
[342053865,1731395469149,-974.3,0.00026849,2]
[342053866,1731395469159,-3387.7,0.00026849,2]
[342053867,1731395469169,-1978.88,0.000269,14]
[342053868,1731395469178,-774.10003613,0.00027,2]
[342053869,1731395469191,-191.45,0.00027,2]
[342053870,1731395469206,-192.22502921,0.00027,2]
[342053871,1731395469218,-176.94496771,0.00027,2]
[342053872,1731395469228,-1020.0,0.00027,30]
[342053873,1731395469237,-10252.96005099,0.00027,20]
[342053874,1731395469247,-500.0,0.00027,23]
[342053875,1731395469256,-190.2,0.00027048,5]
[342053876,1731395469265,-544.45,0.00027123,2]
[342053877,1731395469275,-515.04,0.00027123,2]
[342053878,1731395469285,-554.84,0.00027123,2]
[342053879,1731395469294,-500.0,0.00027123,2]
[342053880,1731395469303,-1157.98,0.00027123,2]
[342053881,1731395469312,-861.1,0.00027123,2]
[342053882,1731395469322,-528.28,0.00027123,2]
[342053883,1731395469331,-500.0,0.00027123,2]
[342053884,1731395469341,-500.0,0.00027123,2]
[342053885,1731395469350,-500.0,0.00027123,2]
[342053887,1731395469360,-529.4,0.00027123,2]
[342053888,1731395469369,-687.54,0.00027123,2]
[342053889,1731395469377,-687.26,0.00027123,2]
[342053890,1731395469386,-2310.28,0.00027123,2]
[342053891,1731395469396,-582.7206372,0.00027123,2]
[342053892,1731395469404,-2204.59,0.00027123,2]
[342053893,1731395469414,-657.25,0.00027123,2]
[342053894,1731395469424,-6271.46,0.00027123,2]
[342053895,1731395469432,-573.94,0.00027123,2]
[342053896,1731395469441,-883.62,0.00027123,2]
[342053897,1731395469453,-925.17,0.00027123,2]
[342053898,1731395469464,-500.0,0.00027123,2]
[342053899,1731395469473,-1011.75,0.00027123,2]
[342053900,1731395469482,-19034.84,0.00027123,2]
[342053901,1731395469491,-1831.69,0.00027123,2]
[342053902,1731395469500,-564.26,0.00027123,2]
[342053903,1731395469510,-1321.42,0.00027123,2]
[342053904,1731395469520,-516.24,0.00027123,2]
[342053905,1731395469529,-1588.61,0.00027123,2]
[342053906,1731395469539,-6707.74,0.00027123,2]
[342053907,1731395469548,-4781.29,0.00027123,2]
[342053908,1731395469557,-1089.53,0.00027123,2]
[342053909,1731395469567,-737.22,0.00027123,2]
[342053910,1731395469576,-8365.05,0.00027123,2]
[342053911,1731395469585,-1231.58,0.00027123,2]
[342053912,1731395469595,-578.71,0.00027123,2]
[342053913,1731395469604,-690.09,0.00027123,2]
[342053914,1731395469613,-3140.86,0.00027123,2]
[342053915,1731395469622,-499.90482752,0.00027123,2]
[342053916,1731395469632,-1329.26,0.00027123,2]
[342053917,1731395469641,-1361.49,0.00027123,2]
[342053918,1731395469651,-754.43,0.00027123,2]
[342053919,1731395469660,-1514.78,0.00027123,2]
[342053920,1731395469669,-633.9,0.00027123,2]
[342053921,1731395469678,-815.11,0.00027123,2]
[342053922,1731395469688,-611.92,0.00027123,2]
[342053923,1731395469700,-12440.19,0.00027123,2]
[342053924,1731395469710,-515.26,0.00027123,2]
[342053925,1731395469719,-782.05,0.00027123,2]
[342053926,1731395469728,-958.04,0.00027123,2]
[342053927,1731395469738,-500.0,0.00027123,2]
[342053928,1731395469747,-517.22,0.00027123,2]
[342053929,1731395469756,-1035.61,0.00027123,2]
[342053930,1731395469766,-974.3,0.00027123,2]
[342053931,1731395469776,-3387.7,0.00027123,2]
[342053932,1731395469785,-2500.0,0.00027156,2]
[342053933,1731395469794,-1053.75162997,0.00027156,2]
[342053934,1731395469803,-2500.0,0.00027156,2]
[342053935,1731395469812,-2500.0,0.00027156,2]
[342053936,1731395469822,-2500.0,0.00027156,2]
[342053937,1731395469830,-300.0,0.000272,2]
[342053938,1731395469839,-5338.0,0.00027309,14]
[342053939,1731395469849,-410.0,0.00027386,2]
[342053940,1731395469858,-167.0,0.00027386,2]
[342053941,1731395469867,-500.0,0.00027397,2]
[342053942,1731395469876,-500.0,0.00027397,2]
[342053943,1731395469885,-500.0,0.00027397,2]
[342053944,1731395469894,-500.0,0.00027397,2]
[342053945,1731395469903,-500.0,0.00027397,2]
[342053946,1731395469913,-500.0,0.00027397,2]
[342053947,1731395469922,-544.45,0.00027397,2]
[342053948,1731395469931,-500.0,0.00027397,2]
[342053949,1731395469941,-500.0,0.00027397,2]
[342053950,1731395469950,-500.0,0.00027397,2]
[342053951,1731395469960,-500.0,0.00027397,2]
[342053952,1731395469969,-500.0,0.00027397,2]
[342053953,1731395469979,-500.0,0.00027397,2]
[342053954,1731395469988,-500.0,0.00027397,2]
[342053955,1731395469998,-500.0,0.00027397,2]
[342053956,1731395470008,-181.60590935,0.00027397,2]
[342053957,1731395470017,-515.04,0.00027397,2]
[342053958,1731395470027,-554.84,0.00027397,2]
[342053959,1731395470037,-500.0,0.00027397,2]
[342053960,1731395470046,-1157.98,0.00027397,2]
[342053961,1731395470055,-500.0,0.00027397,2]
[342053962,1731395470065,-500.0,0.00027397,6]
[342053963,1731395470074,-500.0,0.00027397,10]
[342053964,1731395470084,-501.34733463,0.00027397,14]
[342053965,1731395470094,-861.1,0.00027397,2]
[342053966,1731395470103,-528.28,0.00027397,2]
[342053967,1731395470113,-500.0,0.00027397,2]
[342053968,1731395470123,-301.38125627,0.00027397,2]
[342053969,1731395470132,-500.0,0.00027397,2]
[342053970,1731395470141,-529.4,0.00027397,2]
[342053971,1731395470151,-687.54,0.00027397,2]
[342053972,1731395470160,-687.26,0.00027397,2]
[342053973,1731395470170,-2310.28,0.00027397,2]
[342053974,1731395470179,-2204.59,0.00027397,2]
[342053975,1731395470188,-657.25,0.00027397,2]
[342053976,1731395470200,-6271.46,0.00027397,2]
[342053977,1731395470209,-573.94,0.00027397,2]
[342053978,1731395470219,-883.62,0.00027397,2]
[342053979,1731395470228,-925.17,0.00027397,2]
[342053980,1731395470238,-500.0,0.00027397,2]
[342053981,1731395470248,-1011.75,0.00027397,2]
[342053982,1731395470257,-19034.84,0.00027397,2]
[342053983,1731395470267,-1831.69,0.00027397,2]
[342053984,1731395470276,-564.26,0.00027397,2]
[342053985,1731395470285,-1321.42,0.00027397,2]
[342053986,1731395470295,-516.24,0.00027397,2]
[342053987,1731395470305,-1588.61,0.00027397,2]
[342053988,1731395470315,-6707.74,0.00027397,2]
[342053989,1731395470324,-4781.29,0.00027397,2]
[342053990,1731395470333,-1089.53,0.00027397,2]
[342053991,1731395470344,-500.0,0.00027397,2]
[342053992,1731395470354,-737.22,0.00027397,2]
[342053993,1731395470364,-8365.05,0.00027397,2]
[342053994,1731395470374,-1231.58,0.00027397,2]
[342053995,1731395470383,-578.71,0.00027397,2]
[342053996,1731395470393,-690.09,0.00027397,2]
[342053997,1731395470403,-3140.86,0.00027397,2]
[342053998,1731395470412,-1329.26,0.00027397,2]
[342053999,1731395470421,-1361.49,0.00027397,2]
[342054000,1731395470431,-754.43,0.00027397,2]
[342054001,1731395470440,-1514.78,0.00027397,2]
[342054002,1731395470454,-633.9,0.00027397,2]
[342054003,1731395470467,-815.11,0.00027397,2]
[342054004,1731395470477,-611.92,0.00027397,2]
[342054005,1731395470487,-1000.0,0.00027397,2]
[342054006,1731395470496,-1000.0,0.00027397,2]
[342054007,1731395470507,-1000.0,0.00027397,2]
[342054008,1731395470516,-1000.0,0.00027397,2]
[342054009,1731395470526,-624.87646198,0.00027397,2]
[342054010,1731395470535,-12440.19,0.00027397,2]
[342054011,1731395470546,-515.26,0.00027397,2]
[342054012,1731395470555,-782.05,0.00027397,2]
[342054013,1731395470564,-958.04,0.00027397,2]
[342054014,1731395470573,-1000.0,0.00027397,2]
[342054015,1731395470582,-871.35904387,0.00027397,2]
[342054016,1731395470591,-500.0,0.00027397,2]
[342054017,1731395470601,-517.22,0.00027397,2]
[342054018,1731395470610,-1035.61,0.00027397,2]
[342054019,1731395470619,-974.3,0.00027397,2]
[342054020,1731395470630,-3387.7,0.00027397,2]
[342054021,1731395470639,-424.21661069,0.00027397,60]
[342054022,1731395470648,-151.0,0.00027397,7]
[342054023,1731395470759,-249.64924,0.00027397,7]
[342054024,1731395470768,-857.24667617,0.000274,2]
[342054025,1731395470779,-1849.11109,0.0002741,2]
[342054026,1731395470788,-172.298475,0.0002741,2]
[342054027,1731395470797,-2098.284716,0.0002741,2]
[342054028,1731395470807,-44306.69182777,0.000275,2]
[342054029,1731395470816,-2768.05767119,0.000275,30]
[342054030,1731395470826,-150.0,0.0002754,5]
[342054031,1731395470836,-410.0,0.00027616,2]
[342054032,1731395470845,-167.0,0.00027616,2]
[342054033,1731395470854,-150.0,0.00027661,2]
[342054034,1731395470863,-530.0,0.00027661,2]
[342054035,1731395470872,-2390.0,0.00027661,2]
[342054036,1731395470882,-1123.0,0.00027661,2]
[342054037,1731395470892,-500.0,0.00027671,2]
[342054038,1731395470901,-544.45,0.00027671,2]
[342054039,1731395470911,-515.04,0.00027671,2]
[342054040,1731395470920,-554.84,0.00027671,2]
[342054041,1731395470929,-152.90365557,0.00027671,2]
[342054042,1731395470939,-1157.98,0.00027671,2]
[342054043,1731395470948,-861.1,0.00027671,2]
[342054044,1731395470958,-528.28,0.00027671,2]
[342054045,1731395470967,-543.79900791,0.00027671,2]
[342054046,1731395470977,-500.0,0.00027671,2]
[342054047,1731395470986,-529.4,0.00027671,2]
[342054048,1731395470996,-687.54,0.00027671,2]
[342054049,1731395471005,-687.26,0.00027671,2]
[342054050,1731395471014,-2310.28,0.00027671,2]
[342054051,1731395471024,-2204.59,0.00027671,2]
[342054052,1731395471033,-657.25,0.00027671,2]
[342054053,1731395471043,-6271.46,0.00027671,2]
[342054054,1731395471052,-573.94,0.00027671,2]
[342054055,1731395471062,-883.62,0.00027671,2]
[342054056,1731395471072,-925.17,0.00027671,2]
[342054057,1731395471081,-545.05440735,0.00027671,2]
[342054058,1731395471090,-1011.75,0.00027671,2]
[342054059,1731395471099,-19034.84,0.00027671,2]
[342054060,1731395471108,-1831.69,0.00027671,2]
[342054061,1731395471118,-564.26,0.00027671,2]
[342054062,1731395471127,-1321.42,0.00027671,2]
[342054063,1731395471137,-516.24,0.00027671,2]
[342054064,1731395471146,-1588.61,0.00027671,2]
[342054065,1731395471155,-6707.74,0.00027671,2]
[342054066,1731395471164,-4781.29,0.00027671,2]
[342054067,1731395471174,-1089.53,0.00027671,2]
[342054068,1731395471183,-737.22,0.00027671,2]
[342054069,1731395471193,-8365.05,0.00027671,2]
[342054070,1731395471204,-1231.58,0.00027671,2]
[342054071,1731395471213,-578.71,0.00027671,2]
[342054072,1731395471223,-690.09,0.00027671,2]
[342054073,1731395471233,-3140.86,0.00027671,2]
[342054074,1731395471242,-1329.26,0.00027671,2]
[342054075,1731395471252,-1361.49,0.00027671,2]
[342054076,1731395471261,-754.43,0.00027671,2]
[342054077,1731395471270,-1514.78,0.00027671,2]
[342054078,1731395471279,-633.9,0.00027671,2]
[342054079,1731395471288,-815.11,0.00027671,2]
[342054080,1731395471298,-611.92,0.00027671,2]
[342054081,1731395471308,-12440.19,0.00027671,2]
[342054082,1731395471317,-515.26,0.00027671,2]
[342054083,1731395471326,-782.05,0.00027671,2]
[342054084,1731395471336,-958.04,0.00027671,2]
[342054085,1731395471346,-611.52938504,0.00027671,2]
[342054086,1731395471355,-517.22,0.00027671,2]
[342054087,1731395471364,-1035.61,0.00027671,2]
[342054088,1731395471373,-974.3,0.00027671,2]
[342054089,1731395471383,-3387.7,0.00027671,2]
[342054090,1731395471392,-190.2,0.00027706,6]
[342054091,1731395471402,-1849.11109,0.00027753,2]
[342054092,1731395471411,-2098.284716,0.00027753,2]
[342054093,1731395471420,-9161.96,0.000278,30]
[342054094,1731395471429,-3767.3,0.000278,30]
[342054095,1731395471439,-971.46862905,0.000278,120]
[342054096,1731395471450,-500.0,0.00027906,2]
[342054097,1731395471460,-150.0,0.00027932,2]
[342054098,1731395471472,-150.0,0.00027932,2]
[342054099,1731395471482,-150.0,0.00027932,2]
[342054100,1731395471491,-150.0,0.00027932,2]
[342054101,1731395471500,-2500.0,0.00027936,3]
[342054102,1731395471511,-500.0,0.00027945,2]
[342054103,1731395471520,-1069.40736422,0.00027945,3]
[342054104,1731395471530,-2500.0,0.00027945,3]
[342054105,1731395471540,-2500.0,0.00027945,3]
[342054106,1731395471550,-544.45,0.00027945,2]
[342054107,1731395471559,-515.04,0.00027945,2]
[342054108,1731395471568,-554.84,0.00027945,2]
[342054109,1731395471577,-1157.98,0.00027945,2]
[342054110,1731395471586,-861.1,0.00027945,2]
[342054111,1731395471596,-528.28,0.00027945,2]
[342054112,1731395471606,-250.96,0.00027945,2]
[342054113,1731395471616,-529.4,0.00027945,2]
[342054114,1731395471626,-687.54,0.00027945,2]
[342054115,1731395471635,-687.26,0.00027945,2]
[342054116,1731395471644,-2310.28,0.00027945,2]
[342054117,1731395471653,-2204.59,0.00027945,2]
[342054118,1731395471662,-657.25,0.00027945,2]
[342054119,1731395471672,-6271.46,0.00027945,2]
[342054120,1731395471682,-573.94,0.00027945,2]
[342054121,1731395471692,-883.62,0.00027945,2]
[342054122,1731395471702,-925.17,0.00027945,2]
[342054123,1731395471712,-1011.75,0.00027945,2]
[342054124,1731395471721,-19034.84,0.00027945,2]
[342054125,1731395471730,-1831.69,0.00027945,2]
[342054126,1731395471740,-564.26,0.00027945,2]
[342054127,1731395471749,-1321.42,0.00027945,2]
[342054128,1731395471759,-516.24,0.00027945,2]
[342054129,1731395471768,-1588.61,0.00027945,2]
[342054130,1731395471778,-6707.74,0.00027945,2]
[342054131,1731395471787,-4781.29,0.00027945,2]
[342054132,1731395471797,-1089.53,0.00027945,2]
[342054133,1731395471806,-737.22,0.00027945,2]
[342054134,1731395471815,-8365.05,0.00027945,2]
[342054135,1731395471825,-1231.58,0.00027945,2]
[342054136,1731395471834,-578.71,0.00027945,2]
[342054137,1731395471843,-690.09,0.00027945,2]
[342054138,1731395471853,-3140.86,0.00027945,2]
[342054139,1731395471863,-1329.26,0.00027945,2]
[342054140,1731395471872,-1361.49,0.00027945,2]
[342054141,1731395471881,-754.43,0.00027945,2]
[342054142,1731395471890,-2500.0,0.00027945,3]
[342054143,1731395471900,-1514.78,0.00027945,2]
[342054144,1731395471909,-633.9,0.00027945,2]
[342054145,1731395471919,-815.11,0.00027945,2]
[342054146,1731395471929,-611.92,0.00027945,2]
[342054147,1731395471939,-12440.19,0.00027945,2]
[342054148,1731395471951,-515.26,0.00027945,2]
[342054149,1731395471961,-782.05,0.00027945,2]
[342054150,1731395471970,-958.04,0.00027945,2]
[342054151,1731395471980,-517.22,0.00027945,2]
[342054152,1731395471989,-1035.61,0.00027945,2]
[342054153,1731395471999,-974.3,0.00027945,2]
[342054154,1731395472008,-3387.7,0.00027945,2]
[342054155,1731395472017,-31953.12166963,0.0002799,2]
[342054156,1731395472026,-1165.90142276,0.0002799,7]
[342054157,1731395472035,-160.0,0.00027999,10]
[342054158,1731395472046,-160.0,0.00027999,10]
[342054159,1731395472054,-160.0,0.00027999,10]
[342054160,1731395472064,-180.34120425,0.00027999,10]
[342054161,1731395472073,-879.63020235,0.00028,2]
[342054162,1731395472082,-26394.83,0.00028,14]
[342054163,1731395472091,-1978.88,0.00028,14]
[342054164,1731395472100,-351817.26719503,0.00028,15]
[342054165,1731395472110,-400.0,0.00028,15]
[342054166,1731395472119,-400.0,0.00028,120]
[342054167,1731395472129,-500.0,0.00028,26]
[342054168,1731395472138,-2498.0,0.00028058,20]
[342054169,1731395472146,-2498.0,0.00028058,20]
[342054170,1731395472156,-2498.0,0.00028058,20]
[342054171,1731395472165,-2498.0,0.00028058,20]
[342054172,1731395472175,-2498.0,0.00028058,20]
[342054173,1731395472184,-2498.0,0.00028058,20]
[342054174,1731395472193,-2498.0,0.00028058,20]
[342054175,1731395472204,-2498.0,0.00028058,20]
[342054176,1731395472214,-2498.0,0.00028058,20]
[342054177,1731395472224,-2498.0,0.00028058,20]
[342054178,1731395472234,-2498.0,0.00028058,20]
[342054179,1731395472243,-2498.0,0.00028058,20]
[342054180,1731395472253,-2498.0,0.00028058,20]
[342054181,1731395472262,-2498.0,0.00028058,20]
[342054182,1731395472272,-2498.0,0.00028058,20]
[342054183,1731395472281,-2498.0,0.00028058,20]
[342054184,1731395472290,-2498.0,0.00028058,20]
[342054185,1731395472299,-2498.0,0.00028058,20]
[342054186,1731395472308,-2498.0,0.00028058,20]
[342054187,1731395472318,-2498.0,0.00028058,20]
[342054188,1731395472328,-250.0,0.00028088,5]
[342054189,1731395472337,-1849.11109,0.00028096,2]
[342054190,1731395472346,-172.298475,0.00028096,2]
[342054191,1731395472356,-2098.284716,0.00028096,2]
[342054192,1731395472366,-3000.0,0.00028099,5]
[342054193,1731395472375,-300.0,0.000282,2]
[342054194,1731395472385,-500.0,0.00028219,2]
[342054195,1731395472394,-544.51249938,0.00028219,2]
[342054196,1731395472404,-515.1784214,0.00028219,2]
[342054197,1731395472413,-555.07815577,0.00028219,2]
[342054198,1731395472422,-1158.20068083,0.00028219,2]
[342054199,1731395472432,-861.14262408,0.00028219,2]
[342054200,1731395472440,-528.28603595,0.00028219,2]
[342054201,1731395472450,-529.55043977,0.00028219,2]
[342054202,1731395472460,-687.61766882,0.00028219,2]
[342054203,1731395472471,-687.43518361,0.00028219,2]
[342054204,1731395472480,-2310.40627177,0.00028219,2]
[342054205,1731395472489,-2204.63174828,0.00028219,2]
[342054206,1731395472498,-657.43471261,0.00028219,2]
[342054207,1731395472509,-6271.68298775,0.00028219,2]
[342054208,1731395472519,-574.0767653,0.00028219,2]
[342054209,1731395472528,-883.69726597,0.00028219,2]
[342054210,1731395472539,-925.32827165,0.00028219,2]
[342054211,1731395472548,-1011.98843817,0.00028219,2]
[342054212,1731395472557,-19035.05361363,0.00028219,2]
[342054213,1731395472566,-1831.75267988,0.00028219,2]
[342054214,1731395472576,-564.27508409,0.00028219,2]
[342054215,1731395472585,-1321.62847305,0.00028219,2]
[342054216,1731395472595,-516.47223331,0.00028219,2]
[342054217,1731395472604,-1588.69251807,0.00028219,2]
[342054218,1731395472613,-6707.85301583,0.00028219,2]
[342054219,1731395472623,-4781.30595198,0.00028219,2]
[342054220,1731395472632,-1089.74220115,0.00028219,2]
[342054221,1731395472641,-8365.13160314,0.00028219,2]
[342054222,1731395472651,-737.22278499,0.00028219,2]
[342054223,1731395472661,-1231.73111696,0.00028219,2]
[342054224,1731395472670,-578.8800925,0.00028219,2]
[342054225,1731395472680,-690.18339341,0.00028219,2]
[342054226,1731395472690,-3140.9693759,0.00028219,2]
[342054227,1731395472699,-1329.4916976,0.00028219,2]
[342054228,1731395472709,-1361.53727294,0.00028219,2]
[342054229,1731395472718,-754.59541714,0.00028219,2]
[342054230,1731395472727,-1514.9436185,0.00028219,2]
[342054231,1731395472736,-634.03464856,0.00028219,2]
[342054232,1731395472746,-815.21340655,0.00028219,2]
[342054233,1731395472756,-611.98898706,0.00028219,2]
[342054234,1731395472766,-12440.29791073,0.00028219,2]
[342054235,1731395472775,-515.44,0.00028219,2]
[342054236,1731395472785,-782.23273373,0.00028219,2]
[342054237,1731395472795,-958.12105269,0.00028219,2]
[342054238,1731395472804,-517.26239733,0.00028219,2]
[342054239,1731395472813,-1035.62130016,0.00028219,2]
[342054240,1731395472822,-974.4155411,0.00028219,2]
[342054241,1731395472832,-3387.7161559,0.00028219,2]
[342054242,1731395472938,-2647.61711199,0.00028299,5]
[342054243,1731395472949,-418.98846783,0.00028299,5]
[342054244,1731395472960,-732.42,0.000283,31]
[342054245,1731395472970,-732.42,0.000283,31]
[342054246,1731395472979,-732.42,0.000283,31]
[342054247,1731395472989,-732.42,0.000283,31]
[342054248,1731395473000,-732.42,0.000283,31]
[342054249,1731395473009,-732.42,0.000283,31]
[342054250,1731395473019,-732.42,0.000283,31]
[342054251,1731395473028,-732.42,0.000283,31]
[342054252,1731395473038,-732.42,0.000283,31]
[342054253,1731395473047,-732.42,0.000283,31]
[342054254,1731395473057,-732.42,0.000283,31]
[342054255,1731395473066,-732.42,0.000283,31]
[342054256,1731395473075,-1200.0,0.00028354,7]
[342054257,1731395473085,-190.2,0.00028365,6]
[342054258,1731395473095,-61401.03965238,0.000284,2]
[342054259,1731395473105,-1849.11109,0.00028438,2]
[342054260,1731395473114,-2098.284716,0.00028438,2]
[342054261,1731395473124,-500.0,0.00028493,2]
[342054262,1731395473133,-857.24667617,0.0002851,2]
[342054263,1731395473143,-150.46935,0.000286,2]
[342054264,1731395473153,-189.71,0.00028602,2]
[342054265,1731395473163,-350.0,0.00028636,5]
[342054266,1731395473172,-1021.50211687,0.000287,2]
[342054267,1731395473182,-500.0,0.00028767,2]
[342054268,1731395473192,-1849.11109,0.00028781,2]
[342054269,1731395473202,-172.298475,0.00028781,2]
[342054270,1731395473211,-2098.284716,0.00028781,2]
[342054271,1731395473220,-2516.21510802,0.00028899,5]
[342054272,1731395473230,-3000.0,0.00028899,5]
[342054273,1731395473240,-3000.0,0.00028899,5]
[342054274,1731395473250,-259.46277241,0.00028899,5]
[342054275,1731395473260,-159.0,0.00028997,2]
[342054276,1731395473270,-410.0,0.00028997,2]
[342054277,1731395473280,-167.0,0.00028997,2]
[342054278,1731395473290,-160.0,0.00028999,10]
[342054279,1731395473299,-160.0,0.00028999,10]
[342054280,1731395473308,-160.0,0.00028999,10]
[342054281,1731395473318,-860.48600101,0.00029,2]
[342054282,1731395473327,-25557.90590821,0.00029,30]
[342054283,1731395473337,-178421.4,0.00029,30]
[342054284,1731395473347,-7028.53382216,0.00029,30]
[342054285,1731395473356,-1978.88,0.00029,14]
[342054286,1731395473366,-500.0,0.00029,29]
[342054287,1731395473376,-190.2,0.00029024,6]
[342054288,1731395473386,-500.0,0.00029041,2]
[342054289,1731395473395,-2000.0,0.00029091,2]
[342054290,1731395473405,-48042.66452485,0.000291,2]
[342054291,1731395473414,-732.42,0.000291,31]
[342054292,1731395473424,-732.42,0.000291,31]
[342054293,1731395473433,-732.42,0.000291,31]
[342054294,1731395473443,-732.42,0.000291,31]
[342054295,1731395473453,-732.42,0.000291,31]
[342054296,1731395473467,-732.42,0.000291,31]
[342054297,1731395473476,-732.42,0.000291,31]
[342054298,1731395473486,-732.42,0.000291,31]
[342054299,1731395473495,-732.42,0.000291,31]
[342054300,1731395473506,-732.42,0.000291,31]
[342054301,1731395473516,-732.42,0.000291,31]
[342054302,1731395473526,-732.42,0.000291,31]
[342054303,1731395473536,-732.42,0.000291,31]
[342054304,1731395473548,-732.42,0.000291,31]
[342054305,1731395473558,-732.42,0.000291,31]
[342054306,1731395473568,-732.42,0.000291,31]
[342054307,1731395473577,-732.42,0.000291,31]
[342054308,1731395473587,-732.42,0.000291,31]
[342054309,1731395473596,-732.42,0.000291,31]
[342054310,1731395473606,-732.42,0.000291,31]
[342054311,1731395473616,-732.42,0.000291,31]
[342054312,1731395473625,-732.42,0.000291,31]
[342054313,1731395473635,-732.42,0.000291,31]
[342054314,1731395473644,-732.42,0.000291,31]
[342054315,1731395473654,-871.276454,0.00029138,2]
[342054316,1731395473664,-172.390104,0.00029138,2]
[342054317,1731395473673,-1033.538785,0.00029138,2]
[342054318,1731395473683,-200.42083299,0.00029184,5]
[342054319,1731395473693,-26394.83,0.000292,14]
[342054320,1731395473703,-300.0,0.000292,2]
[342054321,1731395473712,-1152.0,0.00029202,2]
[342054322,1731395473722,-500.0,0.00029264,2]
[342054323,1731395473731,-9161.96,0.000293,30]
[342054324,1731395473740,-3767.3,0.000293,30]